[Event "Polish Youth G16 Championship 2023"]
[Site "Jastrzebia Gora"]
[Date "2023.03.15"]
[Round "5.2"]
[White "Siekanska, Maria"]
[Black "Tokarz, Izabela"]
[Result "1/2-1/2"]
[ECO "D30"]
[WhiteElo "1996"]
[BlackElo "1725"]
[Annotator "TA"]
[PlyCount "88"]
[EventDate "2023.03.11"]
[EventType "swiss"]
[EventCountry "POL"]
[SourceTitle "playchess.com"]
[Source "ChessBase"]
[SourceQuality "1"]
[TimeControl "40/5400+30:1800+30"]

{[%evp 9,88,0,0,0,1,-3,0,14,3,0,0,-7,0,0,11,0,25,-1,0,0,0,-15,0,2,31,29,51,0,59,0,0,-75,0,-6,0,2,4,16,22,-20,-12,-106,-107,-114,-119,-104,-106,-90,-65,-64,-38,-50,-45,-37,-9,-20,-10,-16,-10,-87,-88,-94,-97,-141,-92,-84,-102,-106,-79,-83,0,0,0,0,0,0,0,0,0,0,0]} 1. d4 {[%emt 0:00:03]} d5 {[%emt 0:00:23][%cal Bd7d5,Bd5c4][%mdl 32]} 2. c4 {[%emt 0:00:02]} e6 {[%emt 0:00:05]} 3. g3 {[%emt 0:00:26]} a6 {[%emt 0:05:03]} 4. Bg2 {[%emt 0:00:42]} dxc4 {[%emt 0:00:36]} 5. Nf3 {[%emt 0:01:15]} b5 {[%emt 0:01:19]} 6. Ne5 {[%emt 0:03:41] D30: Queen's Gambit Declined: Systems without Nc3.} c6 {[%emt 0:00:48]} 7. O-O {[%emt 0:06:45]} (7. Bxc6+ $2 {perishes.} Nxc6 8. Nxc6 Qd5 $19) 7... Bb7 {[%emt 0:01:54]} 8. b3 {[%emt 0:00:47]} cxb3 {[%emt 0:01:09]} 9. axb3 {[%emt 0:00:09]} Nf6 {[%emt 0:12:18]} 10. Bb2 {[%emt 0:15:37]} Be7 {[%emt 0:04:30]} 11. Qc2 {[%emt 0:03:50][%cal Re5c6]} Qb6 {[%emt 0:04:09] [#]} 12. Rc1 $146 {[%emt 0:01:29][%cal Re5c6][%mdl 1024] White has compensation.} ({Predecessor:} 12. Nd2 O-O 13. Ne4 Nbd7 14. Ng5 g6 15. Nxc6 Bd6 16. Ne5 Bxg2 17. Nxd7 Nxd7 18. Kxg2 {½-½ Lim,Z (2182)-Al Hajiri,B (2112) Olympiad-43 Batumi 2018 (3.68)}) 12... Nd5 {[%emt 0:02:56]} 13. Nd3 {[%emt 0:01:25]} O-O {[%emt 0:06:04]} 14. Nc5 {[%emt 0:01:53]} Bc8 {[%emt 0:01:19]} 15. e4 {[%emt 0:05:20]} Nf6 {[%emt 0:01:33]} 16. Bc3 {[%emt 0:01:30]} Nbd7 {[%emt 0:07:40]} 17. Ba5 {[%emt 0:02:11]} Qa7 {[%emt 0:01:39]} 18. b4 {[%emt 0:00:50]} (18. Nd2 $14) 18... Nxc5 {[%emt 0:05:21]} (18... e5 $11) 19. dxc5 {[%emt 0:00:21]} ({Better is} 19. bxc5 $14 Bd8 20. Nd2) 19... e5 $11 {[%emt 0:06:50]} 20. f4 {[%emt 0:04:42]} (20. Qd3 $11) 20... Ng4 {[%emt 0:05:19]} (20... exf4 $17 21. gxf4 Nh5) 21. Qe2 {[%emt 0:01:54]} exf4 {[%emt 0:03:13]} 22. gxf4 {[%emt 0:00:30]} Qd7 {[%emt 0:01:19] [#] Strongly threatening ...Qd4+.} 23. Rd1 {[%emt 0:02:06] Repels Qd4+} Qe6 {[%emt 0:00:07] ...Qf6 would be deadly.} 24. Qf3 {[%emt 0:08:00]} (24. h3 $5 {[%cal Re2g4]} Nf6 25. Nc3 $14) 24... Qc4 $36 {[%emt 0:02:29][%cal Oe7c5][%mdl 2048] aiming for ...Bxc5+! Black has some pressure.} 25. Qc3 {[%emt 0:13:04]} (25. Kh1 $11 Qc2 26. Rf1) 25... Qe2 {[%emt 0:03:39]} 26. Qd2 {[%emt 0:01:19]} Qe3+ {[%emt 0:02:17]} 27. Qxe3 {[%emt 0:00:06]} Nxe3 {[%emt 0:00:04]} 28. Rd3 {[%emt 0:00:22]} Nxg2 {[%emt 0:01:17]} 29. Kxg2 {[%emt 0:00:01]} f5 {[%emt 0:00:48]} 30. e5 {[%emt 0:00:59]} g5 {[%emt 0:01:23]} 31. Nc3 {[%emt 0:01:43]} gxf4 {[%emt 0:02:13]} 32. Kf3 {[%emt 0:00:27]} Kf7 {[%emt 0:00:14]} 33. Ne2 {[%emt 0:02:03]} Be6 {[%emt 0:06:19]} 34. Nd4 {[%emt 0:03:31]} (34. Nxf4 $11 {remains equal.} Rg8 35. Bc7) 34... Bd5+ $17 {[%emt 0:00:23]} 35. Kxf4 {[%emt 0:01:02]} Rg8 {[%emt 0:01:40]} 36. Rg3 {[%emt 0:03:44] Wards off Bg5+} h6 {[%emt 0:00:31]} (36... Rxg3 $142 37. hxg3 Rg8 38. e6+ {[%mdl 64] Decoy} Bxe6 39. Nxe6 Kxe6 40. Re1+ Kf6) 37. e6+ {[%emt 0:04:31][%mdl 64] [#] Decoy} Bxe6 {[%emt 0:02:11]} 38. Nxe6 {[%emt 0:00:06]} Kxe6 {[%emt 0:00:02]} (38... Rxg3 {simplifies} 39. hxg3 Kxe6 40. Re1+ Kf6) 39. Re1+ {[%emt 0:00:14]} Kf7 {[%emt 0:00:24]} ({Black should play} 39... Kf6 $17 40. Rge3 Rae8) 40. Kxf5 $11 {[%emt 0:00:00] The position is equal.} Rxg3 {[%emt 0:00:00]} 41. hxg3 {[%emt 0:01:41]} Rg8 {[%emt 0:01:14]} 42. Bc7 {[%emt 0:04:34]} Rg5+ {[%emt 0:00:41]} 43. Ke4 $1 {[%emt 0:00:31]} h5 {[%emt 0:06:40]} 44. Bf4 {[%emt 0:03:32]} Rg6 {[%emt 0:04:28] Weighted Error Value: White=0.19 (very precise) /Black=0.14 (very precise)} 1/2-1/2

[Event "Polish Youth G16 Championship 2023"]
[Site "Jastrzebia Gora"]
[Date "2023.03.15"]
[Round "5.3"]
[White "Smietanska, Wiktoria"]
[Black "Zapalowska, Wiktoria"]
[Result "1/2-1/2"]
[ECO "B11"]
[WhiteElo "1954"]
[BlackElo "1639"]
[Annotator "TA"]
[PlyCount "182"]
[EventDate "2023.03.11"]
[EventType "swiss"]
[EventCountry "POL"]
[SourceTitle "playchess.com"]
[Source "ChessBase"]
[SourceQuality "1"]
[TimeControl "40/5400+30:1800+30"]

{[%evp 13,182,4,30,26,27,23,27,22,19,22,18,13,28,24,22,21,25,20,29,16,24,12,12,5,6,5,15,10,25,9,20,2,4,0,14,8,16,0,20,8,8,14,18,16,76,66,63,58,325,104,136,129,129,94,107,97,108,93,159,107,90,24,23,-114,48,22,30,34,31,8,13,12,43,25,29,25,28,18,22,26,44,18,27,15,60,18,26,36,18,18,68,68,114,114,110,68,114,116,404,68,63,-18,-41,-100,-63,-66,-35,-45,-33,-39,-38,-324,-239,-442,-47,-25,-34,-336,-305,-300,20,0,0,0,49,49,65,0,0,0,0,0,0,0,0,0,0,0,0,0,0,0,0,0,0,0,0,0,0,0,0,0,0,0,0,0,0,0,0,0,0,0,0,0,0,0,0,0,0,0,0]} 1. e4 {[%emt 0:00:03]} c6 {[%emt 0:00:11]} 2. Nf3 {[%emt 0:00:06]} d5 {[%emt 0:00:16]} 3. Nc3 {[%emt 0:00:10]} Bg4 {[%emt 0:00:24]} 4. h3 {[%emt 0:00:11]} Bxf3 {[%emt 0:00:21]} 5. Qxf3 {[%emt 0:00:09]} e6 {[%emt 0:00:13]} 6. g3 {[%emt 0:00:14]} Nf6 {[%emt 0:00:53]} 7. Bg2 {[%emt 0:00:19]} Nbd7 {[%emt 0:02:13]} 8. Qe2 {[%emt 0:08:14] B11: Caro-Kann: Two Knights Variation.} dxe4 {[%emt 0:04:11]} 9. Nxe4 {[%emt 0:00:09]} Nxe4 {[%emt 0:00:19]} 10. Bxe4 {[%emt 0:00:11] White has an edge.} Nf6 {[%emt 0:03:31]} 11. Bg2 {[%emt 0:00:26]} Bd6 {[%emt 0:00:48]} 12. O-O {[%emt 0:01:27]} Qc7 {[%emt 0:03:27]} 13. d4 {[%emt 0:02:58]} O-O {[%emt 0:03:47]} 14. Bg5 {[%emt 0:01:57]} Be7 {[%emt 0:03:01] [#]} 15. c3 $146 {[%emt 0:14:07]} ({Predecessor:} 15. Qe5) 15... Rad8 {[%emt 0:03:14]} 16. h4 {[%emt 0:08:12]} h6 {[%emt 0:01:17]} 17. Bf4 {[%emt 0:10:26]} Bd6 {[%emt 0:04:39]} 18. Bxd6 {[%emt 0:04:26]} Qxd6 {[%emt 0:00:17]} 19. Rfe1 {[%emt 0:01:59]} Rfe8 {[%emt 0:01:59]} 20. Rad1 {[%emt 0:03:38]} Qe7 {[%emt 0:06:30]} 21. Qf3 {[%emt 0:02:13]} Nd5 {[%emt 0:04:22]} 22. Rd3 {[%emt 0:11:34]} Qc7 {[%emt 0:09:48]} 23. Red1 {[%emt 0:02:41]} Nb6 {[%emt 0:02:00]} 24. Qe2 {[%emt 0:05:28]} Re7 {[%emt 0:11:30]} 25. Re3 {[%emt 0:06:11]} Rde8 {[%emt 0:04:22]} 26. Re1 {[%emt 0:01:41]} Qd6 {[%emt 0:01:56]} 27. Qh5 {[%emt 0:01:31]} Nd5 {[%emt 0:00:48]} 28. R3e2 {[%emt 0:01:01]} f6 {[%emt 0:07:02]} (28... Rd8 $11) 29. Be4 {[%emt 0:01:01]} f5 {[%emt 0:01:11]} 30. Bc2 {[%emt 0:01:49]} Rf7 $2 {[%emt 0:04:10][%mdl 8192]} (30... Kh7 $14) 31. Re5 $2 {[%emt 0:01:23]} (31. Bxf5 $1 $18 {and the rest is easy.} Nf6 32. Qg6 (32. Rxe6 $2 Nxh5 {[%mdl 64] Discovered Attack} 33. Rxe8+ Rf8 $19)) 31... Ree7 {[%emt 0:02:22]} 32. Qe2 {[%emt 0:01:31][%cal Re5e6] White is more active.} Rf6 {[%emt 0:00:40]} 33. a3 {[%emt 0:01:17]} g6 {[%emt 0:04:47]} 34. Qd2 {[%emt 0:05:56]} Kg7 {[%emt 0:01:00]} 35. Bb3 {[%emt 0:02:18]} Rf8 {[%emt 0:04:14]} (35... Re8 $142) 36. Qe2 {[%emt 0:00:25]} (36. c4 $142 Nf6 37. c5) 36... Rfe8 $16 {[%emt 0:01:51]} 37. Bc2 {[%emt 0:00:25]} (37. Bxd5 $16 cxd5 38. h5) 37... Nf6 {[%emt 0:02:05]} 38. Bb3 {[%emt 0:00:49]} (38. Qd1 $11) 38... Kf7 $2 {[%emt 0:02:01]} (38... Ng4 $1 $17 39. Ra5 (39. Rxe6 $2 Rxe6 40. Bxe6 Kf6 $19) 39... b6) 39. Qd2 {[%emt 0:00:30]} Ng4 {[%emt 0:00:47]} 40. R5e2 {[%emt 0:00:00]} Kg7 {[%emt 0:00:00]} 41. Kg2 {[%emt 0:15:10]} Nf6 {[%emt 0:02:20]} (41... e5 {simplifies} 42. f3 Nf6 43. dxe5 Qxd2 44. Rxd2 Rxe5 45. Rxe5 Rxe5 46. Bc4 Re7) 42. Rd1 {[%emt 0:02:28]} Ne4 {[%emt 0:04:08]} (42... Qc7 {simplifies} 43. Qf4 Qxf4 44. gxf4 Kf7) 43. Qe3 {[%emt 0:04:13]} a6 {[%emt 0:01:50]} 44. Bc2 {[%emt 0:00:28]} Nf6 {[%emt 0:00:36]} 45. Qe5 {[%emt 0:04:44]} Qd5+ {[%emt 0:02:14]} 46. f3 {[%emt 0:00:21]} Kf7 {[%emt 0:00:57]} 47. Qf4 $36 {[%emt 0:00:46][%mdl 2048] White has good play.} (47. Rde1 {is interesting.} b5 48. Qf4 Kg7 49. Re5) 47... Kg7 {[%emt 0:05:49]} 48. Re5 {[%emt 0:00:21]} Qd8 {[%emt 0:01:01]} 49. b4 {[%emt 0:03:13]} Qc7 {[%emt 0:02:12]} 50. Qd2 {[%emt 0:01:19]} Nd7 {[%emt 0:00:39]} 51. Re2 {[%emt 0:01:08]} Nb6 {[%emt 0:01:09]} (51... Nf6 $11) 52. Bb3 $14 {[%emt 0:00:45]} Qd6 {[%emt 0:02:41]} (52... Nd5 $14 {is more appropriate.}) 53. c4 $16 {[%emt 0:00:23]} Qd8 {[%emt 0:00:57]} 54. Qc3 {[%emt 0:00:11] Black must now prevent d5+.} Kf7 {[%emt 0:00:57]} (54... Kh7 $14) 55. a4 {[%emt 0:00:48]} Nd7 $2 {[%emt 0:01:24][%mdl 8192] [#]} (55... Kg8 $16 56. Rde1 Kh7) 56. Rf1 $2 {[%emt 0:00:45]} ({White has to play} 56. d5 $1 $18 {[%cal Rd5e6] And now dxe6+ would win.} exd5 57. Rxe7+ Qxe7 58. cxd5 Qe2+ 59. Kh3 cxd5 {[%mdl 64] Remove Defender} 60. Bxd5+ Kf8 61. Qh8+ Ke7 62. Qh7+ (62. Qxh6 $2 Qxd1 63. g4 Qxd5 $19) (62. Qd4 g5 $18) 62... Kd8 63. Bb3) 56... Nf6 $14 {[%emt 0:00:47]} 57. g4 {[%emt 0:00:50]} (57. a5 $14) 57... Rd7 $11 {[%emt 0:02:15]} 58. Rd2 {[%emt 0:01:12] [#]} (58. c5 $15) 58... e5 $1 {[%emt 0:01:31][%cal Re5d4]} 59. d5 {[%emt 0:00:36][%cal Od5d6]} cxd5 {[%emt 0:00:33]} (59... Kg7 $5 {[%cal Rc6d5]} 60. gxf5 gxf5 $17) 60. cxd5 {[%emt 0:00:06]} Kg7 {[%emt 0:01:35]} 61. gxf5 {[%emt 0:00:24]} gxf5 {[%emt 0:00:24] ...Nh5 would be deadly.} 62. Qc4 $2 {[%emt 0:01:31][%mdl 8192]} (62. d6 $15) 62... e4 {[%emt 0:01:55]} 63. Qd4 $2 {[%emt 0:00:38]} (63. Rg1 {was worth a try.} Kh7 64. d6 exf3+ 65. Kxf3) 63... e3 $2 {[%emt 0:00:33]} (63... Kh7 $19 64. Rg1 (64. d6 $2 Nh5 $19) 64... exf3+ 65. Kxf3 Re4) 64. Re2 $15 {[%emt 0:00:07][%cal Of1e1]} Kh7 {[%emt 0:00:42]} 65. Rxe3 $2 {[%emt 0:00:30][%mdl 8192]} (65. Qf4 $1 $15) 65... Rxe3 {[%emt 0:00:35]} ({Don't take} 65... Nxd5 66. Rxe8 Qxe8 67. Bxd5 $18) 66. Qxe3 {[%emt 0:00:05] [#] Strongly threatening Qf4.} Nxd5 $2 {[%emt 0:00:08]} (66... Nh5 $1 $19 67. Rg1 (67. Qe5 $2 Rg7+ 68. Kh3 Rg3+ 69. Qxg3 Nxg3 $19) 67... Qxh4) 67. Bxd5 {[%emt 0:00:41] aiming for Be6.} (67. Qe5 $5 {[%cal Re5f5]} Rg7+ 68. Kh3 $14) 67... Rxd5 {[%emt 0:00:04][%mdl 4096] Endgame KQR-KQR} 68. Re1 {[%emt 0:00:34]} Qd7 {[%emt 0:02:44]} (68... Qxh4 $11 {was preferrable.} 69. Qe7+ Qxe7 70. Rxe7+ Kg6) 69. Qe7+ $14 {[%emt 0:00:17]} Kg8 {[%emt 0:01:24]} 70. Qe8+ {[%emt 0:00:09]} ({White should play} 70. h5 $14) 70... Qxe8 $11 {[%emt 0:00:04] The position is equal.} 71. Rxe8+ {[%emt 0:00:04] KR-KR} Kf7 {[%emt 0:00:05]} 72. Rb8 {[%emt 0:00:36]} Rd7 {[%emt 0:00:11]} 73. Kg3 {[%emt 0:00:20]} Kf6 {[%emt 0:01:05]} 74. b5 {[%emt 0:01:18]} axb5 {[%emt 0:00:38]} 75. axb5 {[%emt 0:00:04]} Ke5 {[%emt 0:01:01]} 76. Re8+ {[%emt 0:00:05]} Kf6 {[%emt 0:00:11]} 77. Rf8+ {[%emt 0:00:36]} Ke5 {[%emt 0:01:14]} 78. Re8+ {[%emt 0:00:54]} Kf6 {[%emt 0:00:04]} 79. Rh8 {[%emt 0:00:09]} Kg7 {[%emt 0:00:27]} 80. Rb8 {[%emt 0:00:08]} Kf6 {[%emt 0:00:10]} 81. Kf4 {[%emt 0:00:22]} Rd4+ {[%emt 0:01:42]} 82. Kg3 {[%emt 0:00:26]} Rd7 {[%emt 0:00:08]} 83. b6 {[%emt 0:00:29]} Ke5 {[%emt 0:00:34]} 84. Re8+ {[%emt 0:00:24]} Kf6 {[%emt 0:00:32]} 85. Rh8 {[%emt 0:00:07]} Kg7 {[%emt 0:00:17]} 86. Rc8 {[%emt 0:00:14] White wants to mate with Rc7.} Kf6 {[%emt 0:00:47]} 87. Rc5 {[%emt 0:00:53]} Rd6 {[%emt 0:00:12]} 88. Rb5 {[%emt 0:00:10]} Ke6 {[%emt 0:01:09]} 89. Rb1 {[%emt 0:00:18]} Kf6 {[%emt 0:00:35]} 90. Rb4 {[%emt 0:00:41]} Ke5 {[%emt 0:00:20]} 91. Rb5+ {[%emt 0:00:35]} Kf6 {[%emt 0:00:04] A wild game.   Weighted Error Value: White=0.33/Black=0.31} 1/2-1/2

[Event "Polish Youth G16 Championship 2023"]
[Site "Jastrzebia Gora"]
[Date "2023.03.15"]
[Round "5.4"]
[White "Pawicka, Magdalena"]
[Black "Kicinska, Magdalena"]
[Result "1-0"]
[ECO "B12"]
[WhiteElo "1805"]
[BlackElo "1573"]
[Annotator "NA RC COMBH"]
[PlyCount "71"]
[EventDate "2023.03.11"]
[EventType "swiss"]
[EventCountry "POL"]
[SourceTitle "playchess.com"]
[Source "ChessBase"]
[SourceQuality "1"]
[TimeControl "40/5400+30:1800+30"]

1. e4 {[%emt 0:00:11]} c6 {[%emt 0:00:05]} 2. d4 {[%emt 0:00:03]} d5 {[%emt 0:00:06]} 3. e5 {[%emt 0:00:07]} Bf5 {[%emt 0:00:08]} 4. Nf3 {[%emt 0:00:40]} e6 {[%emt 0:00:24]} 5. Be2 {[%emt 0:00:28]} Nd7 {[%emt 0:02:29]} 6. O-O {[%emt 0:01:38]} c5 {[%emt 0:00:39]} 7. c3 {[%emt 0:04:10]} Ne7 {[%emt 0:01:08]} 8. dxc5 {[%emt 0:05:21]} Nc6 {[%emt 0:05:52]} 9. Nd4 {[%emt 0:15:36]} Bg6 {[%emt 0:04:37]} 10. b4 {[%emt 0:05:33]} Ndxe5 {[%emt 0:06:42]} 11. f4 {[%emt 0:03:53]} Nd7 {[%emt 0:03:49]} 12. Bg4 {[%emt 0:11:22]} Nxd4 {[%emt 0:08:09]} 13. cxd4 {[%emt 0:01:06]} h5 {[%emt 0:02:29]} 14. Bh3 {[%emt 0:05:06]} a5 {[%emt 0:05:47]} 15. b5 {[%emt 0:03:15]} Nxc5 {[%emt 0:06:23]} 16. f5 {[%emt 0:12:25]} exf5 {[%emt 0:02:07]} 17. dxc5 {[%emt 0:02:43]} Bxc5+ {[%emt 0:00:19]} 18. Kh1 {[%emt 0:00:17]} O-O {[%emt 0:07:36]} (18... Qf6 $16 {keeps fighting.}) 19. Bxf5 {[%emt 0:07:16]} Qh4 {[%emt 0:12:49]} 20. Rf4 {[%emt 0:07:07]} Qf6 {[%emt 0:02:03]} 21. Bxg6 {[%emt 0:00:45]} Qxg6 {[%emt 0:01:22]} 22. Bb2 {[%emt 0:01:44]} Qg5 {[%emt 0:05:58]} (22... Rfe8 {keeps fighting.}) 23. Rf3 {[%emt 0:01:07]} Rfe8 {[%emt 0:00:59]} 24. Rg3 {[%emt 0:01:35] Skewer, Deflection} Qf4 {[%emt 0:04:39]} 25. Bxg7 {[%emt 0:01:43]} Bf2 {[%emt 0:02:01]} 26. Be5+ {[%emt 0:01:27]} Bxg3 {[%emt 0:00:24]} 27. Bxf4 {[%emt 0:00:10]} Re1+ {[%emt 0:00:16]} 28. Qxe1 {[%emt 0:00:04]} Bxe1 {[%emt 0:00:05]} 29. Nd2 {[%emt 0:00:44]} Bf2 {[%emt 0:02:40]} 30. Rc1 {[%emt 0:01:50]} b6 {[%emt 0:00:40]} 31. Nf3 {[%emt 0:00:41]} d4 $18 {[%emt 0:01:16]} 32. Rc2 {[%emt 0:01:10]} Be3 {[%emt 0:00:22]} 33. Bxe3 {[%emt 0:00:21]} dxe3 {[%emt 0:00:05]} 34. Kg1 {[%emt 0:00:38]} f5 {[%emt 0:00:59]} 35. Kf1 {[%emt 0:00:20]} f4 {[%emt 0:00:35]} 36. Rc6 {[%emt 0:00:47]} 1-0

[Event "Polish Youth G16 Championship 2023"]
[Site "Jastrzebia Gora"]
[Date "2023.03.15"]
[Round "5.5"]
[White "Lazniewska, Zofia"]
[Black "Ziobrowska, Maja"]
[Result "0-1"]
[ECO "B15"]
[WhiteElo "1621"]
[BlackElo "1758"]
[Annotator "NA RC COMBH"]
[PlyCount "68"]
[EventDate "2023.03.11"]
[EventType "swiss"]
[EventCountry "POL"]
[SourceTitle "playchess.com"]
[Source "ChessBase"]
[SourceQuality "1"]
[TimeControl "40/5400+30:1800+30"]

1. e4 c6 2. d4 d5 3. Nc3 dxe4 4. Nxe4 Nf6 5. Nxf6+ exf6 6. c3 Bd6 7. Bd3 O-O 8. Qc2 Re8+ 9. Ne2 h5 10. O-O Nd7 11. Bf4 Nf8 12. Bxd6 Qxd6 13. Ng3 h4 14. Nf5 Bxf5 15. Bxf5 g6 16. Bg4 f5 17. Bf3 Ne6 18. Qd2 g5 19. g3 g4 20. Bh1 Kg7 21. Rad1 f6 22. d5 Ng5 23. dxc6 Nh3+ 24. Kg2 f4 25. f3 Rad8 26. Qc2 Qxc6 27. gxh4 Rxd1 28. Qxd1 Re3 29. c4 b6 30. b4 Kh6 31. c5 bxc5 32. bxc5 Ra3 33. Qd2 gxf3+ 34. Kxh3 Qe6# 0-1

[Event "Polish Youth G16 Championship 2023"]
[Site "Jastrzebia Gora"]
[Date "2023.03.15"]
[Round "5.6"]
[White "Kawa, Anna"]
[Black "Giemza, Julia"]
[Result "1-0"]
[ECO "B40"]
[WhiteElo "1743"]
[BlackElo "1536"]
[Annotator "NA RC COMBH"]
[PlyCount "101"]
[EventDate "2023.03.11"]
[EventType "swiss"]
[EventCountry "POL"]
[SourceTitle "playchess.com"]
[Source "ChessBase"]
[SourceQuality "1"]
[TimeControl "40/5400+30:1800+30"]

1. e4 {[%emt 0:00:03]} c5 {[%emt 0:00:06]} 2. Nf3 {[%emt 0:00:12]} e6 {[%emt 0:00:07]} 3. d3 {[%emt 0:00:28]} Nc6 {[%emt 0:01:04]} 4. g3 {[%emt 0:00:32]} d6 {[%emt 0:02:20]} 5. Bg2 {[%emt 0:01:02]} Nf6 {[%emt 0:00:18]} 6. O-O {[%emt 0:01:01]} Be7 {[%emt 0:00:31]} 7. c3 {[%emt 0:01:20]} O-O {[%emt 0:00:31]} 8. Nbd2 {[%emt 0:02:04]} e5 {[%emt 0:03:15]} 9. a3 {[%emt 0:07:23]} h6 {[%emt 0:04:46]} 10. Qc2 {[%emt 0:07:03]} Be6 {[%emt 0:06:19]} 11. Rd1 {[%emt 0:03:23]} Rc8 {[%emt 0:03:01]} 12. Qb1 {[%emt 0:05:51]} d5 {[%emt 0:06:01]} 13. Re1 {[%emt 0:10:16]} dxe4 {[%emt 0:14:07]} 14. dxe4 {[%emt 0:04:48]} c4 {[%emt 0:07:47]} 15. Bf1 {[%emt 0:07:27]} b5 {[%emt 0:04:05]} 16. a4 {[%emt 0:04:16]} a6 {[%emt 0:01:25]} 17. axb5 {[%emt 0:00:26]} axb5 {[%emt 0:00:08]} 18. b3 {[%emt 0:02:18]} cxb3 {[%emt 0:02:18]} 19. Bxb5 {[%emt 0:06:59]} Qb6 {[%emt 0:01:12]} 20. c4 {[%emt 0:10:28]} Ng4 {[%emt 0:06:39]} 21. Re2 {[%emt 0:03:10]} Nxf2 {[%emt 0:03:56]} 22. Rxf2 {[%emt 0:00:49]} Bc5 {[%emt 0:00:07]} 23. Ra6 {[%emt 0:04:18]} Bxf2+ {[%emt 0:01:05]} 24. Kg2 {[%emt 0:00:07]} Qe3 {[%emt 0:01:07]} 25. Qxb3 {[%emt 0:06:50]} Qe2 {[%emt 0:01:30]} 26. c5 {[%emt 0:00:52]} Bxc5+ {[%emt 0:03:02]} 27. Bxe2 {[%emt 0:00:10]} Bxb3 {[%emt 0:00:06]} 28. Nxb3 {[%emt 0:00:08]} Nd4 {[%emt 0:01:24]} 29. Nxc5 {[%emt 0:03:14]} Nxe2 {[%emt 0:03:57]} 30. Be3 {[%emt 0:00:56]} Ra8 {[%emt 0:02:00]} 31. Rxa8 {[%emt 0:01:34]} Rxa8 {[%emt 0:00:06]} 32. Nxe5 {[%emt 0:00:39]} Re8 {[%emt 0:00:14]} 33. Ned7 {[%emt 0:00:55]} Nc3 {[%emt 0:01:21]} 34. Kf3 {[%emt 0:00:26]} Re7 {[%emt 0:00:22]} 35. Nb6 {[%emt 0:01:44]} Nb5 {[%emt 0:01:02]} 36. Nd5 {[%emt 0:00:28]} Ra7 {[%emt 0:03:02]} 37. h4 {[%emt 0:02:38]} Ra3 {[%emt 0:00:52]} 38. Nd7 {[%emt 0:01:39]} Nd4+ {[%emt 0:01:51]} 39. Kg4 {[%emt 0:00:28]} Ne6 {[%emt 0:00:35]} 40. Ne7+ {[%emt 0:00:00]} Kh7 {[%emt 0:00:00]} 41. Nd5 {[%emt 0:04:18]} Kg6 {[%emt 0:04:23]} 42. Ne5+ {[%emt 0:00:57]} Kh7 {[%emt 0:00:14]} 43. Nxf7 {[%emt 0:01:00]} Ra4 {[%emt 0:00:43]} 44. Kf5 {[%emt 0:01:32]} Nf8 {[%emt 0:01:17]} 45. Nd6 {[%emt 0:03:40]} Ra1 {[%emt 0:01:50]} 46. e5 {[%emt 0:04:13]} Rd1 {[%emt 0:00:24]} 47. Nf4 {[%emt 0:01:05]} Re1 {[%emt 0:01:25]} 48. Bf2 {[%emt 0:01:32]} Rf1 {[%emt 0:00:51]} 49. Ne4 {[%emt 0:01:05]} Ra1 {[%emt 0:01:03]} 50. e6 {[%emt 0:01:04]} Ra5+ {[%emt 0:00:17]} 51. Bc5 {[%emt 0:00:33]} 1-0

[Event "Polish Youth G16 Championship 2023"]
[Site "Jastrzebia Gora"]
[Date "2023.03.15"]
[Round "5.7"]
[White "Kulczycka, Zofia"]
[Black "Szopa, Emilia"]
[Result "0-1"]
[ECO "B32"]
[WhiteElo "1547"]
[BlackElo "1709"]
[Annotator "NA RC COMBH"]
[PlyCount "78"]
[EventDate "2023.03.11"]
[EventType "swiss"]
[EventCountry "POL"]
[SourceTitle "playchess.com"]
[Source "ChessBase"]
[SourceQuality "1"]
[TimeControl "40/5400+30:1800+30"]

1. e4 {[%emt 0:00:03]} c5 {[%emt 0:00:16]} 2. Nf3 {[%emt 0:00:09]} Nc6 {[%emt 0:00:13]} 3. d4 {[%emt 0:00:09]} cxd4 {[%emt 0:00:14]} 4. Nxd4 {[%emt 0:00:08]} e5 {[%emt 0:01:18]} 5. Nb5 {[%emt 0:00:38]} d6 {[%emt 0:00:05]} 6. N1c3 {[%emt 0:03:06]} a6 {[%emt 0:01:27]} 7. Na3 {[%emt 0:00:12]} Be6 {[%emt 0:01:11]} 8. Be3 {[%emt 0:07:46]} Rb8 {[%emt 0:02:42]} 9. Nd5 {[%emt 0:04:27]} Bxd5 {[%emt 0:01:11]} 10. exd5 {[%emt 0:00:12]} Nce7 {[%emt 0:00:31]} 11. c4 {[%emt 0:03:41]} Qd7 {[%emt 0:02:18]} 12. Bd3 {[%emt 0:04:06]} g6 {[%emt 0:02:29]} 13. O-O {[%emt 0:03:16]} Bg7 {[%emt 0:04:06]} 14. Qd2 {[%emt 0:03:14]} f5 {[%emt 0:06:33]} 15. f3 {[%emt 0:03:52]} Nf6 {[%emt 0:12:00]} 16. Rad1 {[%emt 0:05:04]} f4 {[%emt 0:05:13]} 17. Bf2 {[%emt 0:01:54]} Bh6 {[%emt 0:01:51]} 18. c5 {[%emt 0:15:12]} O-O {[%emt 0:08:19]} 19. Nc4 {[%emt 0:08:15]} Nexd5 {[%emt 0:03:40]} 20. Nxd6 {[%emt 0:05:51]} Ne3 {[%emt 0:03:23]} 21. Bxe3 {[%emt 0:01:08]} fxe3 {[%emt 0:00:13]} 22. Bc4+ {[%emt 0:00:29]} Kg7 {[%emt 0:01:26]} 23. Qc3 {[%emt 0:01:12]} Qe7 {[%emt 0:02:10]} 24. g3 {[%emt 0:05:56]} Rbd8 {[%emt 0:08:17]} 25. Qb3 {[%emt 0:01:44]} b5 {[%emt 0:05:31]} 26. Be2 {[%emt 0:01:24]} Nh5 {[%emt 0:02:33]} 27. a4 {[%emt 0:02:59]} Nf4 {[%emt 0:06:46]} 28. gxf4 {[%emt 0:10:25]} Bxf4 {[%emt 0:00:27]} 29. Qc2 {[%emt 0:01:13]} Qg5+ {[%emt 0:05:15]} 30. Kh1 {[%emt 0:00:18]} Bxh2 {[%emt 0:01:28]} 31. Bd3 {[%emt 0:03:05]} Rf4 {[%emt 0:03:00]} 32. Qg2 {[%emt 0:02:47]} Bg3 {[%emt 0:01:30]} 33. Ne4 {[%emt 0:01:42]} Rh4+ {[%emt 0:00:23]} 34. Kg1 {[%emt 0:00:09]} Bh2+ {[%emt 0:00:23]} 35. Kh1 {[%emt 0:00:05]} Qh6 {[%emt 0:01:08]} 36. Nd6 {[%emt 0:01:55]} Rxd6 {[%emt 0:02:18]} 37. cxd6 {[%emt 0:00:05]} Bf4+ {[%emt 0:00:28]} 38. Kg1 {[%emt 0:00:09]} Rh2 {[%emt 0:00:29]} 39. Rfe1 {[%emt 0:01:22]} Rxg2+ {[%emt 0:00:13]} 0-1